lending/lending_fUSD_20240928
["ID","MTS","AMOUNT","RATE_DAILY","PERIOD"]
[339373888,1727508631878,-290.89083196,0.000125,2]
[339373889,1727508631888,-700.0,0.000125,4]
[339373890,1727508631897,-983.333545,0.00012561,2]
[339373891,1727508631907,-700.0,0.000126,4]
[339373892,1727508631916,-162.40780799,0.00012699,2]
[339373893,1727508631926,-700.0,0.000127,4]
[339373894,1727508631935,-983.333545,0.00012716,2]
[339373895,1727508631945,-167.699812,0.00012716,2]
[339373896,1727508631955,-167.0,0.00012777,2]
[339373897,1727508631965,-1000.0,0.00012799,2]
[339373898,1727508631974,-51374.06461079,0.00012799,2]
[339373899,1727508631986,-641.43342479,0.00012799,2]
[339373900,1727508631999,-10888.19151649,0.00012799,2]
[339373901,1727508632010,-34771.50564533,0.00012799,2]
[339373902,1727508632021,-1155.97087341,0.00012799,2]
[339373903,1727508632032,-672.42886243,0.00012799,2]
[339373904,1727508632044,-287.25129197,0.00012799,2]
[339373905,1727508632055,-881.08675534,0.00012799,2]
[339373906,1727508632067,-1001.04060333,0.00012799,2]
[339373907,1727508632078,-4121.30493201,0.00012799,2]
[339373908,1727508632088,-2500.0,0.00012799,2]
[339373909,1727508632100,-2831.53603758,0.00012799,2]
[339373910,1727508632298,-648.12882621,0.00012799,2]
[339373911,1727508632310,-2727.3619961,0.00012799,2]
[339373912,1727508637702,-1935.59417043,0.00012799,2]
[339373913,1727508637822,-2827.40607705,0.00012799,2]
[339373914,1727508637855,-259.836612,0.00012799,2]
[339373915,1727508637888,-2113.06860203,0.00012799,2]
[339373916,1727508637938,-5686.33463656,0.00012799,2]
[339373917,1727508637971,-2035.5597036,0.00012799,2]
[339373922,1727508640272,-189431.55541996,0.00012799,2]
[339373923,1727508640281,-5000.0,0.00012799,2]
[339373924,1727508640291,-18696.1957,0.000128,2]
[339373925,1727508640300,-169.48064308,0.000128,2]
[339373926,1727508640309,-618.286,0.000128,2]
[339373927,1727508640318,-161.242,0.000128,2]
[339373928,1727508640327,-1302.0,0.000128,4]
[339373929,1727508640337,-150.35310251,0.000128,2]
[339373930,1727508640347,-150.35310251,0.000128,2]
[339373931,1727508640356,-150.35310251,0.000128,2]
[339373932,1727508640366,-150.35310251,0.000128,2]
[339373933,1727508640375,-150.35310251,0.000128,2]
[339373934,1727508640385,-150.35310251,0.000128,2]
[339373935,1727508640394,-150.35310251,0.000128,2]
[339373936,1727508640403,-150.35310251,0.000128,2]
[339373937,1727508640412,-150.85,0.000128,2]
[339373938,1727508640422,-161.96091981,0.000128,2]
[339373939,1727508640431,-161.96091981,0.000128,2]
[339373940,1727508640441,-161.96091981,0.000128,2]
[339373941,1727508640450,-161.96091981,0.000128,2]
[339373942,1727508640460,-161.96091981,0.000128,2]
[339373943,1727508640471,-161.96091981,0.000128,2]
[339373944,1727508640483,-162.46,0.000128,2]
[339373945,1727508640492,-5244.43977251,0.000128,2]
[339373946,1727508640502,-151.96140669,0.000128,2]
[339373947,1727508640511,-151.96140669,0.000128,2]
[339373948,1727508640521,-151.96140669,0.000128,2]
[339373949,1727508640531,-151.96140669,0.000128,2]
[339373950,1727508640540,-151.96140669,0.000128,2]
[339373951,1727508640551,-151.96140669,0.000128,2]
[339373952,1727508640564,-1.3046711,0.000128,2]
[339373953,1727508640579,-150.65673559,0.000128,2]
[339373954,1727508640590,-152.46,0.000128,2]
[339373955,1727508640599,-4634.80553506,0.0001283,7]
[339373956,1727508640609,-213.66776704,0.00012833,2]
[339373957,1727508640619,-180.0,0.00012844,2]
[339373958,1727508640628,-5244.43977251,0.0001285,2]
[339373959,1727508640638,-164.637,0.00012868,2]
[339373960,1727508640648,-983.333545,0.00012871,2]
[339373961,1727508640657,-500.0,0.00012873,2]
[339373962,1727508640667,-450.3104,0.00012877,2]
[339373963,1727508640677,-5774.8365591,0.00012895,2]
[339373964,1727508640687,-8157.3092603,0.00012895,2]
[339373965,1727508640698,-3867.00254632,0.00012895,2]
[339373966,1727508640709,-884.16644664,0.00012895,2]
[339373967,1727508640721,-7301.05354104,0.00012895,2]
[339373968,1727508640730,-293.54410586,0.00012895,2]
[339373969,1727508640740,-3586.205215,0.00012895,2]
[339373970,1727508640750,-247.06014866,0.00012898,2]
[339373971,1727508640760,-1000.0,0.00012899,2]
[339373972,1727508640770,-338.27930064,0.00012899,2]
[339373973,1727508640779,-280.26739322,0.00012899,2]
[339373974,1727508640789,-557.42008199,0.00012899,2]
[339373975,1727508640798,-543.0,0.000129,2]
[339373976,1727508640808,-25066.02245093,0.000129,2]
[339373977,1727508640820,-2929.0557936,0.000129,2]
[339373978,1727508640836,-724.19897341,0.000129,2]
[339373979,1727508640847,-1950.05512954,0.000129,2]
[339373980,1727508640859,-4128.97177876,0.000129,2]
[339373981,1727508640870,-377.63072068,0.000129,2]
[339373982,1727508640881,-649.02,0.000129,2]
[339373983,1727508640893,-5224.38016316,0.000129,2]
[339373984,1727508640904,-2256.63123446,0.000129,2]
[339373985,1727508640915,-505.2624392,0.000129,2]
[339373986,1727508640927,-1600.65,0.000129,2]
[339373987,1727508640938,-31971.56757775,0.000129,2]
[339373988,1727508640949,-3500.0,0.000129,2]
[339373989,1727508640960,-1641.30252,0.000129,2]
[339373990,1727508640979,-964.35546878,0.000129,2]
[339373991,1727508640990,-281.186742,0.000129,2]
[339373992,1727508641001,-588.2445,0.000129,2]
[339373993,1727508641012,-5511.00549854,0.000129,2]
[339373994,1727508641027,-1499.03644279,0.000129,2]
[339373995,1727508642399,-1157.99654354,0.000129,2]
[339374000,1727508642598,-1578.62846982,0.000129,2]
[339374011,1727508642810,-383.09455463,0.000129,2]
[339374012,1727508642822,-506.1732825,0.000129,2]
[339374013,1727508642844,-13909.70808209,0.000129,2]
[339374014,1727508642966,-490.45,0.000129,2]
[339374018,1727508645606,-9002.50504631,0.000129,2]
[339374019,1727508645618,-585.71,0.000129,2]
[339374020,1727508645630,-939.883994,0.000129,2]
[339374021,1727508645643,-1904.85498398,0.000129,2]
[339374022,1727508645654,-4056.86937231,0.000129,2]
[339374023,1727508645666,-1919.57705919,0.000129,2]
[339374024,1727508645677,-1274.89793954,0.000129,2]
[339374025,1727508645690,-1034.05360558,0.000129,2]
[339374026,1727508645777,-1185.57,0.000129,2]
[339374027,1727508645810,-553.95980729,0.000129,2]
[339374028,1727508645821,-442.41444887,0.000129,2]
[339374029,1727508645859,-36346.83189669,0.000129,2]
[339374030,1727508645874,-453.46218221,0.000129,2]
[339374031,1727508645886,-5884.21188928,0.000129,2]
[339374032,1727508645897,-729.12371714,0.000129,2]
[339374033,1727508645909,-12100.0,0.000129,2]
[339374034,1727508645942,-4919.07120143,0.000129,2]
[339374035,1727508645953,-740.40033588,0.000129,2]
[339374038,1727508663413,3843.0,0.000103,5]
[339376229,1727508923763,1134.25368671,0.000156,120]
[339376230,1727509038697,1050.0,0.00011,2]
[339376231,1727509169984,228.36,0.00010959,2]
[339376232,1727509207903,447.05,9.341e-05,2]
[339376233,1727509406568,-160.0,0.00014,20]
[339376267,1727509638623,506.84217482,0.00015,30]
[339376271,1727509642417,502.36664676,0.00015,30]
[339376272,1727509648943,507.55648713,0.00015,30]
[339376273,1727509653294,503.62742831,0.00015,30]
[339376288,1727509756972,424.69,9.342e-05,2]
[339376294,1727509816891,1000.0,0.00011059,2]
[339376297,1727509831751,-250.0,0.00011141,2]
[339376298,1727509831761,-1689.86,0.00011196,2]
[339376299,1727509831771,-431.81,0.00011221,2]
[339376300,1727509831781,-250.0,0.00011232,2]
[339376301,1727509831791,-1500.0,0.00011245,2]
[339376302,1727509831801,-900.0,0.00011261,2]
[339376303,1727509831810,-185.71,0.0001127,2]
[339376304,1727509831819,-300.0,0.00011273,2]
[339376305,1727509831829,-197.97,0.00011274,2]
[339376306,1727509831839,-2090.0,0.00011274,2]
[339376307,1727509831848,-2603.45,0.00011274,2]
[339376308,1727509831859,-937.97,0.00011275,2]
[339376309,1727509831870,-2751.0,0.00011507,2]
[339376310,1727509831880,-424.69,0.00011606,2]
[339376311,1727509831889,-3055.57,0.00011825,2]
[339376312,1727509831898,-3055.57,0.00011828,2]
[339376313,1727509831908,-3055.57,0.00011831,2]
[339376314,1727509831917,-3055.57,0.00011834,2]
[339376315,1727509831927,-3055.57,0.00011838,2]
[339376316,1727509831937,-3055.57,0.00011841,2]
[339376317,1727509831946,-3055.57,0.00011844,2]
[339376318,1727509831958,-3055.57,0.00011847,2]
[339376319,1727509831968,-3055.57,0.0001185,2]
[339376320,1727509831977,-3055.57,0.00011853,2]
[339376321,1727509831986,-3055.57,0.00011856,2]
[339376322,1727509831996,-3055.57,0.00011859,2]
[339376323,1727509832005,-3055.57,0.00011863,2]
[339376324,1727509832015,-3055.57,0.00011866,2]
[339376325,1727509832024,-3055.57,0.00011869,2]
[339376326,1727509832034,-3055.57,0.00011872,2]
[339376327,1727509832043,-3055.57,0.00011875,2]
[339376328,1727509832052,-3055.57,0.00011878,2]
[339376329,1727509832062,-3055.57,0.00011881,2]
[339376330,1727509832072,-3055.57,0.00011884,2]
[339376331,1727509832082,-500.0,0.000119,2]
[339376332,1727509832091,-259.4,0.00011976,2]
[339376333,1727509832101,-164.637,0.00012041,2]
[339376334,1727509832110,-753.95,0.00012055,2]
[339376335,1727509832120,-753.95,0.00012055,2]
[339376336,1727509832130,-617.67,0.00012055,2]
[339376337,1727509832139,-420.0,0.00012384,2]
[339376338,1727509832149,-180.0,0.00012384,2]
[339376339,1727509832158,-464.055288,0.00012406,2]
[339376340,1727509832167,-1000.0,0.00012442,2]
[339376341,1727509832176,-464.055288,0.00012561,2]
[339376343,1727509832185,-464.055288,0.00012716,2]
[339376345,1727509832195,-169.48064307,0.000128,2]
[339376346,1727509832205,-531.489,0.000128,2]
[339376348,1727509832214,-161.24317837,0.000128,2]
[339376349,1727509832224,-154.63470836,0.000128,2]
[339376350,1727509832233,-154.63470836,0.000128,2]
[339376351,1727509832242,-154.63470836,0.000128,2]
[339376352,1727509832252,-154.63470836,0.000128,2]
[339376353,1727509832262,-154.63470836,0.000128,2]
[339376354,1727509832274,-154.63470836,0.000128,2]
[339376355,1727509832284,-155.13,0.000128,2]
[339376356,1727509832293,-151.14688915,0.000128,2]
[339376357,1727509832303,-151.14688915,0.000128,2]
[339376358,1727509832313,-151.14688915,0.000128,2]
[339376359,1727509832323,-151.14688915,0.000128,2]
[339376360,1727509832331,-151.14688915,0.000128,2]
[339376361,1727509832341,-151.64,0.000128,2]
[339376362,1727509832352,-162.07554735,0.000128,2]
[339376363,1727509832362,-162.07554735,0.000128,2]
[339376364,1727509832371,-162.07554735,0.000128,2]
[339376365,1727509832380,-162.07554735,0.000128,2]
[339376366,1727509832390,-162.07554735,0.000128,2]
[339376367,1727509832399,-162.57,0.000128,2]
[339376368,1727509832408,-204.70241534,0.000128,2]
[339376369,1727509832417,-1748.14659085,0.000128,2]
[339376370,1727509832427,-1748.14659083,0.0001285,2]
[339376371,1727509832436,-160.6596571,0.00012868,10]
[339376372,1727509832446,-464.055288,0.00012871,2]
[339376373,1727509832456,-86966.02481704,0.000129,2]
[339376374,1727509832468,-3668.33855427,0.000129,2]
[339376375,1727509832480,-3065.28778418,0.000129,2]
[339376376,1727509832493,-718.60973769,0.000129,2]
[339376377,1727509832504,-456.33428005,0.000129,2]
[339376378,1727509832521,-1587.04893849,0.000129,2]
[339376379,1727509832534,-360.50156887,0.000129,2]
[339376380,1727509832544,-1328.94087341,0.000129,2]
[339376381,1727509832555,-849.98280081,0.000129,2]
[339376382,1727509832566,-3803.0,0.000129,2]
[339376386,1727509837796,-74716.2262333,0.000129,2]
[339376387,1727509837806,-438222.79497969,0.000129,2]
[339376388,1727509837850,-442.25,0.000129,2]
[339376390,1727509837863,-646.08003166,0.000129,2]
[339376391,1727509837876,-755.95142476,0.000129,2]
[339376392,1727509837905,-5385.61115174,0.000129,2]
[339376393,1727509837917,-2756.36521699,0.000129,2]
[339376394,1727509837929,-1002.85010162,0.000129,2]
[339376395,1727509838118,-1700.0,0.000129,2]
[339376396,1727509838130,-1457.81,0.000129,2]
[339376397,1727509838142,-290.81041903,0.000129,2]
[339376398,1727509838172,-777.56750301,0.000129,2]
[339376399,1727509838183,-771.26757877,0.000129,2]
[339376400,1727509838195,-1971.41164809,0.000129,2]
[339376542,1727509839809,-451.47150565,0.000129,2]
[339376546,1727509839820,-725.07205368,0.000129,2]
[339376549,1727509839831,-4496.90717872,0.000129,2]
[339376582,1727509842857,-444.24425241,0.000129,2]
[339376583,1727509842911,-251.91699999,0.000129,2]
[339376584,1727509843070,-9542.55699877,0.000129,2]
[339376585,1727509843125,-447.3484677,0.000129,2]
[339376586,1727509843179,-2826.0,0.000129,2]
[339376599,1727509845759,-44760.57830407,0.000129,2]
[339376600,1727509845771,-3892.41032081,0.000129,2]
[339376601,1727509845783,-304.11047909,0.000129,2]
[339376602,1727509845866,-286.63722524,0.000129,2]
[339376603,1727509845920,-1795.02806895,0.000129,2]
[339376604,1727509845932,-8330.5073718,0.000129,2]
[339376605,1727509845975,-3351.56897786,0.000129,2]
[339376606,1727509919153,14721.6355,0.00011041,2]
[339376608,1727510422379,408.77,0.0001,2]
[339376609,1727510593683,217.54071264,0.000157,120]
[339376610,1727510599028,1022.27796149,0.00015,30]
[339376611,1727510669446,-510.0,0.00016438,120]
[339376612,1727510669473,-510.0,0.00016712,120]
[339376613,1727510669498,-510.0,0.00016986,120]
[339376614,1727510669522,-510.0,0.0001726,120]
[339376615,1727510669549,-510.0,0.00017534,120]
[339376616,1727510669572,-510.0,0.00017808,120]
[339376617,1727510669597,-510.0,0.00018082,120]
[339376618,1727510669622,-510.0,0.00018356,120]
[339376619,1727510669646,-510.0,0.0001863,120]
[339376620,1727510669669,-510.0,0.00018904,120]
[339376621,1727510669693,-510.0,0.00019178,120]
[339376622,1727510669718,-510.0,0.00019452,120]
[339376623,1727510669741,-510.0,0.00019726,120]
[339376624,1727510669767,-1000.0,0.0002,120]
[339376625,1727510669790,-317.07306258,0.0002,120]
[339376626,1727510669817,-207.43784,0.0002084,120]
[339376627,1727510669853,-1000.0,0.00022,120]
[339376628,1727510669877,-1540.0,0.00022,120]
[339376629,1727510675988,-269.68183232,0.00021,60]
[339376655,1727510731393,500.8219439,0.00022,120]
[339376656,1727510813141,510.0,0.00016438,120]
[339376657,1727510813412,510.0,0.00016712,120]
[339376658,1727510813694,510.0,0.00016986,120]
[339376659,1727510813950,510.0,0.0001726,120]
[339376660,1727510814222,510.0,0.00017534,120]
[339376661,1727510814500,510.0,0.00017808,120]
[339376662,1727510814797,510.0,0.00018082,120]
[339376663,1727510815111,510.0,0.00018356,120]
[339376664,1727510815388,510.0,0.0001863,120]
[339376665,1727510815661,510.0,0.00018904,120]
[339376666,1727510815945,510.0,0.00019178,120]
[339376667,1727510816277,510.0,0.00019452,120]
[339376668,1727510816533,510.0,0.00019726,120]
[339376669,1727510816813,317.07306258,0.0002,120]
[339376682,1727510845704,1050.0,0.00011,2]
[339376704,1727510939479,388.33,9.872e-05,2]
[339376708,1727510962911,1500.00351137,0.00021917,120]
[339376713,1727511000022,174.0,0.00021,60]
[339376721,1727511031903,-206.49292276,0.0001168,2]
[339376722,1727511031914,-88.95521908,0.0001178,2]
[339376723,1727511031958,-161.04478092,0.0001178,2]
[339376724,1727511031967,-381.94,0.0001178,2]
[339376725,1727511031977,-169.85046938,0.00011801,2]
[339376726,1727511031988,-430.14953062,0.00011801,2]
[339376727,1727511031998,-1186.05018873,0.00011882,2]
[339376728,1727511032008,-207.52,0.00011883,2]
[339376729,1727511032018,-1664.00482433,0.00011918,2]
[339376730,1727511032030,-1086.99517567,0.00011918,2]
[339376731,1727511032040,-400.0,0.00011922,2]
[339376732,1727511032050,-197.97,0.00011928,2]
[339376733,1727511032059,-510.8948554,0.00012045,2]
[339376734,1727511032070,-430.03,0.00012122,2]
[339376735,1727511032079,-1055.01,0.00012122,2]
[339376736,1727511032089,-388.33,0.00012135,2]
[339376737,1727511032098,-150.99,0.00012135,2]
[339376738,1727511032108,-2202.3,0.00012264,2]
[339376739,1727511032118,-499.99,0.00012264,2]
[339376740,1727511032128,-130.8591288,0.00012445,2]
[339376741,1727511032141,-31.7908712,0.00012445,2]
[339376742,1727511032151,-530.13,0.00012445,2]
[339376743,1727511032161,-183.32,0.00012445,2]
[339376744,1727511032170,-799.0,0.00012556,2]
[339376745,1727511032180,-158.1,0.00012678,2]
[339376746,1727511032189,-357.0158,0.000127,2]
[339376747,1727511032199,-150.0,0.00012799,2]
[339376748,1727511032208,-1136.39751478,0.000128,2]
[339376749,1727511032219,-1758.98083205,0.000128,2]
[339376750,1727511032232,-1198.16775,0.000128,2]
[339376751,1727511032244,-999.915646,0.000128,2]
[339376752,1727511032256,-1777.48768149,0.000128,2]
[339376753,1727511032267,-496.77,0.000128,2]
[339376754,1727511032279,-300.0,0.000128,2]
[339376755,1727511032291,-404.0,0.000128,2]
[339376757,1727511032302,-300.0,0.000128,2]
[339376759,1727511032316,-423.03210488,0.000128,2]
[339376760,1727511032327,-220.1511708,0.000128,2]
[339376761,1727511032336,-450.3238292,0.000128,2]
[339376762,1727511032348,-493.5770007,0.000128,2]
[339376763,1727511032359,-264.82796935,0.000128,2]
[339376764,1727511032371,-349.70936002,0.000128,2]
[339376765,1727511032383,-563.69998346,0.000128,2]
[339376766,1727511032395,-4910.01101573,0.000128,2]
[339376767,1727511032407,-6394.8,0.000128,2]
[339376768,1727511032419,-7856.03904154,0.000128,2]
[339376769,1727511032428,-2602.13560883,0.000128,2]
[339376770,1727511032440,-895.83527617,0.000128,2]
[339376771,1727511032449,-500.0,0.000128,2]
[339376772,1727511032459,-11157.14615115,0.000128,2]
[339376773,1727511032471,-909.3594811,0.000128,2]
[339376774,1727511032482,-15779.76375817,0.000128,2]
[339376775,1727511032493,-6149.07558323,0.000128,2]
[339376776,1727511032513,-3103.20000004,0.000128,2]
[339376777,1727511032525,-13115.76460994,0.000128,2]
[339376778,1727511032536,-342.16745155,0.000128,2]
[339376779,1727511032547,-413.47322908,0.000128,2]
[339376780,1727511032558,-79055.36703574,0.000128,2]
[339376781,1727511032569,-462.052,0.000128,2]
[339376782,1727511032580,-173.1710617,0.000128,2]
[339376783,1727511032589,-173.1710617,0.000128,2]
[339376784,1727511032599,-173.1710617,0.000128,2]
[339376785,1727511032608,-173.1710617,0.000128,2]
[339376786,1727511032618,-173.67,0.000128,2]
[339376787,1727511032627,-181.35161143,0.000128,2]
[339376788,1727511032636,-181.35161143,0.000128,2]
[339376789,1727511032645,-181.35161143,0.000128,2]
[339376790,1727511032655,-181.85,0.000128,2]
[339376791,1727511032664,-155.57274735,0.000128,2]
[339376792,1727511032673,-155.57274735,0.000128,2]
[339376793,1727511032682,-155.57274735,0.000128,2]
[339376794,1727511032692,-155.57274735,0.000128,2]
[339376795,1727511032702,-156.07,0.000128,2]
[339376796,1727511032711,-180.05783861,0.000128,2]
[339376797,1727511032721,-522.11418492,0.00012873,2]
[339376798,1727511032730,-222.3781,0.00012877,2]
[339376799,1727511032739,-286.17813824,0.00012899,2]
[339376800,1727511032749,-3525.03969667,0.00012899,2]
[339376801,1727511032758,-1551.11,0.00012899,2]
[339376802,1727511032767,-1551.11,0.00012899,2]
[339376803,1727511032777,-1551.11,0.00012899,2]
[339376804,1727511032786,-1551.11,0.00012899,2]
[339376805,1727511032795,-1551.11,0.00012899,2]
[339376806,1727511032804,-1551.11,0.00012899,2]
[339376807,1727511032816,-1551.11,0.00012899,2]
[339376808,1727511032825,-1551.11,0.00012899,2]
[339376809,1727511032834,-1551.11,0.00012899,2]
[339376810,1727511032843,-1551.11,0.00012899,2]
[339376811,1727511032853,-1551.11,0.00012899,2]
[339376812,1727511032863,-1551.11,0.00012899,2]
[339376813,1727511032872,-1551.11,0.00012899,2]
[339376814,1727511032881,-1551.11,0.00012899,2]
[339376815,1727511032890,-1551.11,0.00012899,2]
[339376816,1727511032899,-1551.11,0.00012899,2]
[339376817,1727511032909,-1551.11,0.00012899,2]
[339376818,1727511032918,-1551.11,0.00012899,2]
[339376819,1727511032927,-1551.11,0.00012899,2]
[339376820,1727511032936,-1551.11,0.00012899,2]
[339376821,1727511032946,-1551.11,0.00012899,2]
[339376822,1727511032955,-1551.11,0.00012899,2]
[339376823,1727511032965,-1551.11,0.00012899,2]
[339376824,1727511032974,-1551.33923294,0.00012899,2]
[339376825,1727511032984,-1765.18,0.00012899,2]
[339376826,1727511032993,-1765.18,0.00012899,2]
[339376827,1727511033003,-1765.18,0.00012899,2]
[339376828,1727511033012,-1765.18,0.00012899,2]
[339376829,1727511033022,-1765.18,0.00012899,2]
[339376830,1727511033033,-1765.18,0.00012899,2]
[339376831,1727511033042,-1475.2559787,0.00012899,2]
[339376832,1727511033055,-289.9240213,0.00012899,2]
[339376833,1727511033067,-112.49770506,0.00012899,2]
[339376836,1727511038077,-404.0366,0.00012022,2]
[339376838,1727511038087,-696.63465844,0.00012899,2]
[339376839,1727511038100,-956.0476365,0.00012899,2]
[339376840,1727511038110,-1765.18,0.00012899,2]
[339376841,1727511038121,-1765.18,0.00012899,2]
[339376842,1727511038130,-1765.18,0.00012899,2]
[339376843,1727511038140,-1765.18,0.00012899,2]
[339376844,1727511038150,-1765.18,0.00012899,2]
[339376845,1727511038159,-1765.18,0.00012899,2]
[339376846,1727511038169,-1765.18,0.00012899,2]
[339376847,1727511038178,-1765.18,0.00012899,2]
[339376848,1727511038188,-1765.18,0.00012899,2]
[339376849,1727511038197,-1765.18,0.00012899,2]
[339376850,1727511038207,-1324.260288,0.00012899,2]
[339376851,1727511038218,-440.919712,0.00012899,2]
[339376852,1727511038228,-1765.18,0.00012899,2]
[339376853,1727511038237,-1519.29072097,0.00012899,2]
[339376854,1727511038249,-245.88927903,0.00012899,2]
[339376855,1727511038444,-1765.18,0.00012899,2]
[339376856,1727511038454,-1765.18,0.00012899,2]
[339376857,1727511038464,-1765.24313509,0.00012899,2]
[339376858,1727511038474,-500.0,0.00012899,2]
[339376859,1727511038483,-500.0,0.00012899,2]
[339376860,1727511038493,-408.2840103,0.00012899,2]
[339376861,1727511038502,-3107.80357558,0.000129,2]
[339376862,1727511038513,-798.62109675,0.000129,2]
[339376863,1727511038524,-666.4,0.000129,2]
[339376864,1727511038535,-32160.03000479,0.000129,2]
[339376865,1727511038545,-6473.43830679,0.000129,2]
[339376866,1727511038556,-307.07755376,0.000129,2]
[339376867,1727511038568,-575.0,0.000129,2]
[339376868,1727511038579,-300.001004,0.000129,2]
[339376869,1727511038595,-469.45,0.000129,2]
[339376870,1727511038607,-23183.27718853,0.000129,2]
[339376871,1727511038618,-6649.16360922,0.000129,2]
[339376872,1727511038630,-6391.31452547,0.000129,2]
[339376873,1727511038641,-3861.57904239,0.000129,2]
[339376874,1727511038653,-1323.56384653,0.000129,2]
[339376875,1727511038665,-443.13092382,0.000129,2]
[339376876,1727511038676,-1043.64469996,0.000129,2]
[339376877,1727511038688,-326.45,0.000129,2]
[339376878,1727511038700,-54424.44962291,0.000129,2]
[339376879,1727511038712,-551.36847403,0.000129,2]
[339376880,1727511038723,-4359.03,0.000129,2]
[339376881,1727511038735,-515.28705452,0.000129,2]
[339376883,1727511038747,-1107.58937578,0.000129,2]
[339376884,1727511038759,-1537.30297559,0.000129,2]
[339376885,1727511038770,-17749.91681394,0.000129,2]
[339376886,1727511038781,-4183.97458834,0.000129,2]
[339376887,1727511038793,-542.99403541,0.000129,2]
[339376888,1727511038804,-4852.6012,0.000129,2]
[339376889,1727511038815,-2234.28306925,0.000129,2]
[339376890,1727511038827,-538.72382392,0.000129,2]
[339376891,1727511038838,-709.08266212,0.000129,2]
[339376897,1727511039948,-188.3834412,0.000128,2]
[339376898,1727511039958,-16860.66304571,0.000129,2]
[339376899,1727511040004,-322.85018007,0.000129,2]
[339376900,1727511042785,-307.46014093,0.000129,2]
[339376901,1727511042842,-416.47603396,0.000129,2]
[339376903,1727511042854,-503.4787228,0.000129,2]
[339376909,1727511042898,-5370.85371168,0.000129,2]
[339376910,1727511042908,-18733.75667372,0.000129,2]
[339376911,1727511042919,-3297.55,0.000129,2]
[339376912,1727511042930,-6174.05112222,0.000129,2]
[339376913,1727511042956,-2833.72264,0.000129,2]
[339376914,1727511042967,-4021.55597981,0.000129,2]
[339376915,1727511042977,-3593.08737091,0.000129,2]
[339376916,1727511042988,-540.18000005,0.000129,2]
[339376917,1727511043012,-2112.5254776,0.000129,2]
[339376918,1727511043023,-324.94870764,0.000129,2]
[339376919,1727511043034,-468.27882803,0.000129,2]
[339376921,1727511043046,-2544.08778353,0.000129,2]
[339376923,1727511043067,-5360.00000005,0.000129,2]
[339376924,1727511043091,-1079.800005,0.000129,2]
[339376925,1727511043124,-310.14703584,0.000129,2]
[339376926,1727511043135,-347.78074878,0.000129,2]
[339376927,1727511043147,-5520.4318433,0.000129,2]
[339376928,1727511043180,-297.59077079,0.000129,2]
[339376930,1727511043191,-27020.25076693,0.000129,2]
[339376931,1727511043204,-3939.92439593,0.000129,2]
[339376933,1727511043237,-2694.80145435,0.000129,2]
[339376935,1727511043249,-275683.03617357,0.000129,2]
[339376939,1727511043296,-6428.28499988,0.000129,2]
[339376940,1727511043307,-362686.94678073,0.000129,2]
[339376941,1727511043321,-632768.6832174,0.000129,2]
[339376942,1727511043351,-935.898057,0.000129,2]
[339376943,1727511043363,-22234.19,0.000129,2]
[339376944,1727511043375,-1364.2199562,0.000129,2]
[339376945,1727511043386,-16513.05539984,0.000129,2]
[339376946,1727511043397,-883.32723249,0.000129,2]
[339376948,1727511043408,-630.18302999,0.000129,2]
[339376949,1727511043419,-18753.73763179,0.000129,2]
[339376951,1727511043432,-311.308985,0.000129,2]
[339376955,1727511045991,-357.26507167,0.000129,2]
[339376956,1727511046152,-1900.0,0.000129,2]
[339376957,1727511046165,-354.11893621,0.000129,2]